bitfinex-derivatives/quotes_ETHF0:USTF0_20210110
["timestamp","ask_amount","ask_price","bid_price","bid_amount"]
[1610266539703,2.3539,1332.7,1331.8,4.00959]
[1610266541005,5.7043,1334.5,1331.8,4.00959]
[1610266541509,5.7043,1334.5,1332.2,4.00959]
[1610266542804,4.7227,1334.5,1332.2,4.00959]
[1610266543005,2.3294,1333.4,1332.2,4.00959]
[1610266543705,2.3294,1333.4,1332.7,4.00959]
[1610266544505,2.2794,1333.4,1332.7,4.00959]
[1610266545706,4.00959,1332.8,1332.7,4.00959]
[1610266546007,2.2794,1333.4,1332.7,4.00959]
[1610266547008,1.7826,1334.6,1333.4,0.9856]
[1610266547210,5.8478,1335.6,1333.4,1.689]
[1610266547608,4.00959,1333.5,1333.4,1.689]
[1610266575845,4.00959,1333.5,1333.4,5.69859]
[1610266583356,5.51759,1333.5,1333.4,5.69859]
[1610266584354,5.51759,1333.5,1333.4,1.689]
[1610266586557,4.00959,1333.5,1333.4,1.689]
[1610266587560,5.50619,1333.5,1333.4,1.689]
[1610266588061,4.00959,1333.5,1333.4,1.689]
[1610266590965,4.00959,1333.5,1332.7,59.9653]
[1610266591365,5.49869,1333.5,1332.7,59.9653]
[1610266591564,2.32059,1333.5,1332.7,59.9653]
[1610266591763,4.00959,1332.8,1332.7,59.9653]
[1610266592665,5.50489,1332.8,1332.7,59.9653]
[1610266592865,4.00959,1332.8,1332.7,59.9653]
[1610266595869,4.00959,1333.0,1332.7,59.9653]
[1610266596469,5.50799,1333.0,1332.7,59.9653]
[1610266596670,4.00959,1333.0,1332.7,59.9653]
[1610266597770,4.00959,1333.0,1332.9,4.00959]
[1610266599273,4.00959,1333.0,1332.9,58.86719]
[1610266603677,2.4656,1333.6,1332.9,58.86719]
[1610266603876,2.4819,1333.9,1333.2,4.00959]
[1610266604075,55.1096,1334.4,1333.2,4.00959]
[1610266604475,55.1096,1334.4,1332.9,54.8576]
[1610266605977,4.00959,1333.3,1333.2,4.00959]
[1610266608880,1.7921,1333.8,1333.2,4.00959]
[1610266609881,4.00959,1333.4,1332.8,2.2985]
[1610266610081,4.00959,1333.4,1332.5,2.05]
[1610266610483,4.00959,1333.4,1331.9,1.9433]
[1610266610784,4.00959,1333.4,1331.5,30.0]
[1610266611884,1.7921,1333.8,1333.2,4.00959]
[1610266612184,60.5252,1334.7,1333.2,4.00959]
[1610266613886,4.00959,1333.3,1333.2,4.00959]
[1610266614586,1.5344,1333.8,1333.2,4.00959]
[1610266615987,4.00959,1333.7,1333.5,4.00959]
[1610266617589,4.00959,1333.7,1331.5,30.0]
[1610266617989,1.5344,1333.8,1333.0,4.00959]
[1610266618190,1.5344,1333.8,1333.0,51.46569]
[1610266618990,42.1925,1334.3,1333.0,51.46569]
[1610266619993,4.00959,1333.1,1333.0,51.46569]
[1610266620195,5.82549,1333.1,1333.0,51.46569]
[1610266621795,5.82549,1333.1,1333.0,47.4561]
[1610266627601,5.82549,1333.1,1332.7,4.00959]
[1610266628001,4.00959,1332.8,1332.7,4.00959]
[1610266628203,5.90399,1332.8,1332.7,4.00959]
[1610266629603,5.90399,1332.8,1331.7,30.0]
[1610266629904,1.8944,1332.8,1332.4,4.00959]
[1610266630104,1.8944,1332.8,1331.5,1.5365]
[1610266630303,1.8944,1332.8,1331.4,30.0]
[1610266630904,1.8944,1332.8,1331.5,30.0]
[1610266632004,1.8944,1332.8,1332.2,4.00959]
[1610266633405,1.8159,1333.1,1332.2,4.00959]
[1610266633707,1.8159,1333.1,1331.5,30.0]
[1610266633907,1.4814,1333.5,1332.0,4.00959]
[1610266634107,30.0,1334.5,1332.0,4.00959]
[1610266634506,30.0,1334.4,1332.0,4.00959]
[1610266634707,31.9112,1334.4,1332.0,4.00959]
[1610266635909,31.9112,1334.4,1332.2,4.00959]
[1610266636108,1.9112,1334.4,1332.2,4.00959]
[1610266636608,1.9112,1334.4,1331.4,5.2458]
[1610266637912,1.9112,1334.4,1332.0,4.00959]
[1610266638408,1.9112,1334.4,1331.4,5.2458]
[1610266639909,4.00959,1332.0,1331.9,4.00959]
[1610266641312,4.00959,1332.0,1331.4,1.8408]
[1610266641513,4.00959,1332.0,1328.4,33.405]
[1610266641715,4.00959,1332.0,1328.4,67.4]
[1610266641912,4.00959,1332.0,1331.9,4.00959]
[1610266643317,1.8722,1332.3,1331.9,4.00959]
[1610266643916,1.8722,1332.3,1332.2,4.00959]
[1610266644416,1.8722,1332.3,1331.2,5.795]
[1610266644617,1.8722,1332.3,1331.2,2.39]
[1610266645620,1.6165,1334.4,1331.2,2.39]
[1610266645822,35.8016,1334.6,1331.2,5.795]
[1610266646019,4.00959,1331.7,1331.6,4.00959]
[1610266646820,1.9528,1332.2,1331.6,4.00959]
[1610266648024,4.00959,1332.1,1331.9,4.00959]
[1610266648625,4.00959,1332.1,1331.9,12.65329]
[1610266655737,4.00959,1332.1,1332.0,7.1588]
[1610266662046,1.9528,1332.2,1332.0,7.1588]
[1610266662245,4.00959,1332.5,1332.0,7.1588]
[1610266663046,47.8686,1333.2,1332.0,7.1588]
[1610266663648,47.8686,1333.2,1332.0,37.1588]
[1610266664049,47.8686,1333.2,1333.1,4.00959]
[1610266665049,4.00959,1333.3,1333.1,4.00959]
[1610266665449,5.5562,1335.1,1333.1,4.00959]
[1610266666051,5.5562,1335.1,1332.3,32.4268]
[1610266666052,5.5562,1335.1,1333.8,4.00959]
[1610266666451,49.0,1335.8,1333.8,4.00959]
[1610266667652,19.0,1335.8,1333.8,4.00959]
[1610266667952,49.0,1335.8,1333.8,4.00959]
[1610266668152,4.00959,1333.9,1333.8,4.00959]
[1610266668754,6.02009,1333.9,1333.8,4.00959]
[1610266672356,6.02009,1333.9,1332.3,2.4268]
[1610266672556,6.02009,1333.9,1332.1,30.0]
[1610266674257,6.02009,1333.9,1333.6,4.00959]
[1610266676258,6.02009,1333.9,1332.9,1.9517]
[1610266676259,6.02009,1333.9,1333.8,4.00959]
[1610266678259,6.02009,1333.9,1333.4,4.00959]
[1610266680261,6.02009,1333.9,1333.6,4.00959]
[1610266683966,6.02009,1333.9,1333.8,59.4462]
[1610266686469,6.02009,1333.9,1333.8,63.45579]
[1610266690074,6.02009,1333.9,1333.8,59.4462]
[1610266693275,6.02009,1333.9,1333.4,4.00959]
[1610266694074,6.02009,1333.9,1332.3,30.0]
[1610266694274,6.02009,1333.9,1330.5,30.0]
[1610266694474,4.00959,1333.2,1333.0,4.00959]
[1610266694674,6.49129,1333.2,1333.0,4.00959]
[1610266696578,6.49129,1333.2,1332.8,4.00959]
[1610266696775,6.49129,1333.2,1330.5,30.0]
[1610266697677,6.49129,1333.2,1330.7,30.0]
[1610266698077,6.49129,1333.2,1332.0,3.405]
[1610266698476,2.4817,1333.2,1332.4,4.00959]
[1610266698677,2.4817,1333.2,1332.0,3.405]
[1610266699781,2.0105,1333.9,1332.0,3.405]
[1610266699982,2.0224,1333.2,1332.0,3.405]
[1610266700485,2.0224,1333.2,1332.4,4.00959]
[1610266702484,4.00959,1332.8,1332.6,4.00959]
[1610266719300,1.917,1332.9,1332.6,4.00959]
[1610266719502,2.0224,1333.2,1332.6,4.00959]
[1610266719701,2.0105,1333.9,1332.6,4.00959]
[1610266719901,60.2949,1334.1,1332.6,4.00959]
[1610266720503,4.00959,1333.0,1332.9,4.00959]
[1610266723018,4.00959,1333.0,1332.0,33.405]
[1610266723617,4.00959,1333.0,1332.0,3.405]
[1610266723818,4.00959,1333.0,1332.0,33.405]
[1610266724519,4.00959,1332.8,1332.7,4.00959]
[1610266724918,5.94549,1332.8,1332.7,4.00959]
[1610266725518,5.94549,1332.8,1332.0,3.405]
[1610266726620,1.9359,1332.8,1332.6,4.00959]
[1610266728619,4.00959,1332.7,1332.6,4.00959]
[1610266732124,1.9359,1332.8,1332.6,4.00959]
[1610266732525,4.00959,1332.9,1332.6,4.00959]
[1610266734524,4.00959,1332.9,1332.8,4.00959]
[1610266735025,2.4278,1333.1,1332.8,4.00959]
[1610266735224,44.276,1333.7,1332.8,4.00959]
[1610266736625,44.276,1333.7,1333.1,4.00959]
[1610266738629,4.00959,1333.2,1333.1,4.00959]
[1610266739031,5.82479,1333.2,1333.1,4.00959]
[1610266740230,5.82479,1333.2,1332.0,3.405]
[1610266740630,4.00959,1332.9,1332.8,4.00959]
[1610266744333,1.8152,1333.2,1332.8,4.00959]
[1610266744634,4.00959,1333.1,1332.8,4.00959]
[1610266746539,1.8152,1333.2,1333.0,4.00959]
[1610266747140,41.4363,1334.8,1333.0,4.00959]
[1610266747339,35.8189,1334.8,1332.0,33.405]
[1610266747539,38.2393,1334.8,1332.0,33.405]
[1610266748642,38.2393,1334.8,1332.8,4.00959]
[1610266750545,4.00959,1332.9,1332.8,4.00959]
[1610266750946,6.40339,1332.9,1332.8,4.00959]
[1610266754347,6.40339,1332.9,1332.0,3.405]
[1610266754547,2.3938,1332.9,1332.6,4.00959]
[1610266756047,30.0,1334.6,1332.6,4.00959]
[1610266756649,4.00959,1332.7,1332.6,4.00959]
[1610266757248,4.00959,1332.7,1332.0,3.405]
[1610266758650,4.00959,1332.7,1332.5,4.00959]
[1610266758849,2.1316,1332.9,1332.5,4.00959]
[1610266760653,4.00959,1332.6,1332.5,4.00959]
[1610266761754,4.00959,1332.6,1332.0,3.405]
[1610266762754,2.1316,1332.9,1332.1,4.00959]
[1610266762954,30.0,1334.6,1332.1,4.00959]
[1610266764757,4.00959,1332.2,1332.1,4.00959]
[1610266766457,4.00959,1332.2,1330.9,33.405]
[1610266766657,2.2322,1332.6,1331.8,4.00959]
[1610266768360,2.2322,1332.6,1331.5,1.6662]
[1610266768759,4.00959,1331.7,1331.6,4.00959]
[1610266773765,2.2322,1332.6,1331.6,4.00959]
[1610266774166,1.6268,1332.9,1331.6,4.00959]
[1610266774367,30.0,1334.6,1331.6,4.00959]
[1610266774767,30.0,1334.6,1331.5,1.6662]
[1610266774768,30.0,1334.6,1331.8,4.00959]
[1610266776773,4.00959,1331.9,1331.8,4.00959]
[1610266777873,1.8621,1332.4,1331.8,4.00959]
[1610266778876,1.8621,1332.4,1332.2,4.00959]
[1610266780779,4.00959,1332.3,1332.2,4.00959]
[1610266787184,1.8621,1332.4,1332.2,64.40689]
[1610266787585,99.6435,1333.1,1332.2,64.40689]
[1610266788887,4.00959,1332.3,1332.2,64.40689]
[1610266796699,1.9166,1332.5,1332.2,34.00959]
[1610266796899,1.9166,1332.5,1332.4,4.00959]
[1610266797101,4.00959,1332.9,1332.5,30.0]
[1610266797501,30.0,1335.6,1332.5,30.0]
[1610266797701,35.5306,1335.6,1332.5,30.0]
[1610266799003,35.5306,1335.6,1333.3,4.00959]
[1610266799706,35.5306,1335.6,1332.5,30.0]
[1610266799902,37.314,1335.6,1332.5,30.0]
[1610266800402,37.314,1335.6,1332.6,30.0]
[1610266801001,4.00959,1333.3,1333.2,4.00959]
[1610266801202,5.56249,1333.3,1333.2,4.00959]
[1610266801405,5.56249,1333.3,1331.9,30.0]
[1610266801803,5.56249,1333.3,1333.0,53.3581]
[1610266803005,4.00959,1333.1,1333.0,53.3581]
[1610266806009,4.00959,1333.1,1332.4,4.00959]
[1610266807011,4.00959,1332.5,1332.4,4.00959]
[1610266807612,2.3439,1332.7,1332.4,4.00959]
[1610266809014,2.3439,1332.7,1332.6,4.00959]
[1610266810115,2.3439,1332.7,1331.9,30.0]
[1610266811115,4.00959,1332.6,1332.4,4.00959]
[1610266815423,4.00959,1332.6,1332.5,51.1398]
[1610266817624,2.3439,1332.7,1332.5,51.1398]
[1610266817826,1.5529,1333.3,1332.5,51.1398]
[1610266818325,48.9478,1333.5,1332.5,51.1398]
[1610266819125,4.00959,1332.7,1332.6,4.00959]
[1610266828332,5.51509,1332.7,1332.6,4.00959]
[1610266835236,5.51509,1332.7,1332.4,4.00959]
[1610266836436,4.00959,1332.7,1332.4,4.00959]
[1610266837336,4.00959,1332.5,1332.4,4.00959]
[1610266837937,4.00959,1332.5,1332.0,143.8534]
[1610266838137,4.00348219,1332.5,1332.0,143.8534]
[1610266839338,4.00959,1332.1,1332.0,147.86299]
[1610266842243,5.50759,1332.1,1332.0,147.86299]
[1610266842443,4.00959,1332.1,1332.0,147.86299]
[1610266843748,4.00959,1332.1,1332.0,4.00959]
[1610266847053,4.00959,1332.1,1331.8,2.0849]
[1610266847252,4.00959,1332.1,1331.5,1.6662]
[1610266847452,2.4415,1332.8,1331.7,4.00959]
[1610266848052,35.6456,1334.1,1331.7,5.75659]
[1610266849555,4.00959,1331.8,1331.7,1.747]
[1610266849755,4.00959,1331.8,1331.5,4.00959]
[1610266851556,4.00959,1331.8,1331.3,2.3464]
[1610266851557,4.00959,1331.8,1331.7,4.00959]
[1610266853360,4.00959,1331.8,1331.3,2.3464]
[1610266853563,4.00959,1331.5,1331.3,6.35599]
[1610266853765,4.00959,1331.5,1331.3,2.3464]
[1610266854565,4.00959,1331.5,1330.9,3.405]
[1610266854765,4.00959,1331.5,1328.5,30.0]
[1610266854766,4.00959,1331.5,1328.7,30.0]
[1610266855371,4.00959,1331.5,1328.7,32.3174]
[1610266855567,4.00959,1330.9,1330.8,4.00959]
[1610266856369,4.00959,1330.9,1328.7,32.3174]
[1610266857670,4.00959,1330.9,1330.5,4.00959]
[1610266858670,4.00959,1330.9,1330.8,44.7421]
[1610266859674,4.00959,1330.9,1330.8,48.75169]
[1610266860172,2.1428,1331.4,1330.8,48.75169]
[1610266860974,2.0776,1331.7,1330.8,48.75169]
[1610266861174,51.5938,1331.9,1330.8,44.7421]
[1610266861575,4.00959,1330.9,1330.8,44.7421]
[1610266871790,4.00959,1330.9,1330.7,51.8274]
[1610266871992,4.00959,1330.9,1330.5,48.639]
[1610266873698,4.00959,1330.6,1330.5,48.639]
[1610266881210,4.00959,1330.6,1330.5,6.1469]
[1610266888716,4.00959,1330.6,1330.3,45.4691]
[1610266889717,4.00959,1330.4,1330.3,49.47869]
[1610266890118,4.00959,1330.4,1330.3,45.4691]
[1610266890719,4.00959,1330.4,1329.7,2.4516]
[1610266890920,1.6708,1330.7,1329.7,2.4516]
[1610266891119,1.7915,1331.1,1329.7,2.4516]
[1610266891528,1.7294,1331.4,1329.5,10.216]
[1610266891723,61.6358,1331.6,1330.5,4.00959]
[1610266893725,4.00959,1330.6,1330.5,4.00959]
[1610266896729,4.00959,1330.6,1329.5,12.5485]
[1610266897735,4.00959,1330.6,1330.5,4.00959]
[1610266899640,4.00959,1330.6,1329.5,12.5485]
[1610266899841,4.00959,1330.6,1330.3,4.00959]
[1610266900041,4.00959,1330.6,1330.5,58.4656]
[1610266905748,4.00959,1330.6,1330.5,62.47519]
[1610266909953,2.25,1330.8,1330.5,62.47519]
[1610266910352,56.4735,1331.6,1330.5,62.47519]
[1610266911754,56.4735,1331.6,1330.8,4.00959]
[1610266913856,56.4735,1331.6,1331.0,4.00959]
[1610266914056,56.4735,1331.6,1330.5,58.4656]
[1610266914255,58.3836,1331.6,1330.5,58.4656]
[1610266915759,4.00959,1330.6,1330.5,58.4656]
[1610266918762,4.00959,1330.6,1330.4,4.00959]
[1610266918963,4.00959,1330.6,1330.1,62.4143]
[1610266919763,4.00959,1330.2,1330.1,62.4143]
[1610266928379,4.00959,1330.2,1329.6,4.00959]
[1610266929183,4.00959,1330.2,1328.7,2.3174]
[1610266929581,16.00959,1330.2,1328.2,33.405]
[1610266929980,4.00959,1329.2,1329.0,4.00959]
[1610266944104,1.8078,1329.5,1329.0,4.00959]
[1610266944506,1.9914,1329.9,1329.0,4.00959]
[1610266944706,12.0,1330.2,1329.0,4.00959]
[1610266945907,4.00959,1329.4,1329.2,4.00959]
[1610266947109,2.2632,1329.5,1329.2,4.00959]
[1610266948010,6.27279,1329.5,1329.4,4.00959]
[1610266948711,6.27279,1329.5,1329.4,56.4912]
[1610266956515,6.27279,1329.5,1329.1,59.1033]
[1610266958016,6.27279,1329.5,1329.4,4.00959]
[1610266960517,6.27279,1329.5,1329.1,59.1033]
[1610266962022,6.27279,1329.5,1329.4,4.00959]
[1610266965527,2.2632,1329.5,1329.4,4.00959]
[1610266965731,1.9241,1329.9,1329.4,4.00959]
[1610266965927,12.0,1330.2,1329.4,34.00959]
[1610266966127,12.0,1330.2,1330.0,4.00959]
[1610266968229,16.00959,1330.2,1330.0,4.00959]
[1610266968428,12.0,1330.2,1330.0,4.00959]
[1610266972043,12.0,1330.2,1330.0,34.00959]
[1610266973344,12.0,1330.2,1330.0,4.00959]
[1610266994468,12.0,1330.2,1329.8,2.1389]
[1610266994670,12.0,1330.2,1329.5,1.8272]
[1610266995067,12.0,1330.2,1329.2,5.358]
[1610266996171,4.00959,1329.8,1329.6,4.00959]
[1610267001878,4.00959,1329.8,1329.2,5.358]
[1610267002281,4.00959,1329.5,1329.2,5.96259]
[1610267004278,4.00959,1329.3,1329.2,5.96259]
[1610267008284,4.00959,1329.5,1329.2,5.96259]
[1610267010285,4.00959,1329.3,1329.2,5.96259]
[1610267013590,12.0,1330.2,1329.2,5.96259]
[1610267014288,4.00959,1329.8,1329.5,4.00959]
[1610267016092,12.0,1330.2,1329.5,4.00959]
[1610267016292,4.00959,1330.0,1329.9,4.00959]
[1610267018694,4.00959,1330.0,1329.2,1.953]
[1610267019192,4.00959,1330.0,1328.8,30.0]
[1610267020295,12.0,1330.2,1328.8,30.0]
[1610267020296,12.0,1330.2,1329.8,4.00959]
[1610267022299,4.00959,1330.1,1330.0,4.00959]
[1610267030008,3.89759,1330.1,1330.0,4.00959]
[1610267030210,3.80559,1330.1,1329.9,45.1994]
[1610267038517,5.28899,1330.1,1329.9,45.1994]
[1610267038717,5.28899,1330.1,1329.2,1.8944]
[1610267038917,5.28899,1330.1,1328.7,31.5757]
[1610267039922,5.28899,1330.1,1328.7,1.5757]
[1610267040121,5.28899,1330.1,1328.0,30.0]
[1610267040422,1.4834,1330.1,1328.8,4.00959]
[1610267040922,1.4834,1330.1,1328.8,5.73059]
[1610267041122,9.0638,1330.1,1329.2,45.7474]
[1610267042625,9.0638,1330.1,1329.4,4.00959]
[1610267043023,9.0638,1330.1,1329.2,45.7474]
[1610267043725,7.5804,1330.1,1329.2,45.7474]
[1610267044426,4.00959,1329.5,1329.4,4.00959]
[1610267044628,5.49909,1329.5,1329.4,4.00959]
[1610267046528,5.49909,1329.5,1329.2,45.7474]
[1610267046729,4.00959,1329.5,1329.2,45.7474]
[1610267047631,5.50599,1329.5,1329.2,45.7474]
[1610267048132,4.00959,1329.5,1329.2,45.7474]
[1610267048531,4.00959,1329.5,1329.2,49.75699]
[1610267049033,5.52289,1329.5,1329.2,49.75699]
[1610267049632,4.00959,1329.5,1329.2,49.75699]
[1610267050432,2.1128,1330.0,1329.3,51.602]
[1610267050832,12.0,1330.2,1329.3,51.602]
[1610267052433,4.00959,1329.4,1329.3,51.602]
[1610267054033,5.50419,1329.4,1329.3,51.602]
[1610267055535,4.00959,1329.4,1329.3,51.602]
[1610267056636,5.50419,1329.4,1329.3,51.602]
[1610267056936,4.00959,1329.4,1329.3,51.602]
[1610267059836,4.00959,1329.4,1329.0,4.00959]
[1610267060438,4.00959,1329.2,1329.0,4.00959]
[1610267065239,1.7729,1329.6,1329.0,4.00959]
[1610267065639,1.7343,1329.9,1329.0,4.00959]
[1610267065839,1.7343,1329.9,1329.0,34.00959]
[1610267066038,12.0,1330.2,1329.0,34.00959]
[1610267066438,12.0,1330.2,1329.5,4.00959]
[1610267068440,4.00959,1329.6,1329.5,4.00959]
[1610267071451,2.1482,1329.8,1329.5,34.00959]
[1610267071653,12.0,1330.2,1329.5,34.00959]
[1610267072454,16.00959,1330.2,1330.1,4.00959]
[1610267078661,16.00959,1330.2,1330.1,47.53449]
[1610267082267,16.00959,1330.2,1330.1,43.5249]
[1610267088070,16.00959,1330.2,1329.5,105.5265]
[1610267088071,16.00959,1330.2,1329.8,53.4287]
[1610267088669,4.00959,1329.9,1329.8,53.4287]
[1610267088873,6.46009,1329.9,1329.8,53.4287]
[1610267097478,6.46009,1329.9,1329.8,60.7051]
[1610267098580,6.36009,1329.9,1329.8,60.7051]
[1610267098780,6.31009,1329.9,1329.8,60.7051]
[1610267104084,1.46009,1329.9,1329.8,60.7051]
[1610267104492,12.0,1330.2,1329.8,60.7051]
[1610267104692,4.00959,1329.9,1329.8,60.7051]
[1610267105996,6.25519,1329.9,1329.8,60.7051]
[1610267106795,6.25519,1329.9,1329.5,45.6848]
[1610267108696,4.00959,1329.6,1329.5,45.6848]
[1610267111297,2.2456,1329.9,1329.5,45.6848]
[1610267111498,2.2456,1329.9,1329.5,75.6848]
[1610267111699,12.0,1330.2,1329.5,75.6848]
[1610267112700,12.0,1330.2,1330.1,4.00959]
[1610267125920,12.0,1330.2,1330.1,63.94849]
[1610267128722,16.00959,1330.2,1330.1,63.94849]
[1610267132527,12.0,1330.2,1330.1,63.94849]
[1610267143946,12.0,1330.2,1330.1,4.00959]
[1610267146847,16.00959,1330.2,1330.1,4.00959]
[1610267154950,12.0,1330.2,1330.1,34.00959]
[1610267157354,12.0,1330.2,1330.1,4.00959]
[1610267157556,12.0,1330.2,1330.1,34.00959]
[1610267161358,12.0,1330.2,1330.1,4.00959]
[1610267184889,11.95,1330.2,1330.1,34.00959]
[1610267188690,11.95,1330.2,1330.1,30.0]
[1610267189296,11.95,1330.2,1330.1,34.00959]
[1610267203314,11.95,1330.2,1330.1,4.00959]
[1610267208117,7.0,1330.2,1330.1,4.00959]
[1610267212522,7.0,1330.2,1330.1,34.00959]
[1610267213825,7.0,1330.2,1330.1,4.00959]
[1610267214526,7.0,1330.2,1330.1,34.00959]
[1610267215926,7.0,1330.2,1330.1,4.00959]
[1610267216727,7.0,1330.2,1330.1,34.00959]
[1610267218232,7.0,1330.2,1330.1,4.00959]
[1610267219930,7.0,1330.2,1330.1,65.24819]
[1610267221533,11.00959,1330.2,1330.1,65.24819]
[1610267221933,11.00959,1330.2,1330.1,61.2386]
[1610267229348,47.8194,1330.1,1329.4,48.1573]
[1610267229547,4.00959,1329.5,1328.8,4.00959]
[1610267229747,5.95679,1329.5,1328.8,4.00959]
[1610267231552,1.9472,1329.5,1329.0,4.00959]
[1610267233657,1.9472,1329.5,1329.2,4.00959]
[1610267234857,7.0,1330.2,1329.2,4.00959]
[1610267235560,4.00959,1329.3,1329.2,4.00959]
[1610267238162,4.00959,1329.3,1328.2,35.6817]
[1610267239463,4.00959,1329.3,1328.2,32.2767]
[1610267239663,4.00959,1329.3,1329.0,4.00959]
[1610267241664,4.00959,1329.3,1328.6,2.288]
[1610267241665,4.00959,1329.3,1329.2,4.00959]
[1610267242665,4.00959,1329.3,1328.6,2.288]
[1610267243668,4.00959,1328.8,1328.7,4.00959]
[1610267245672,4.00959,1329.1,1328.7,4.00959]
[1610267245873,2.4661,1329.6,1328.7,4.00959]
[1610267246072,7.0,1330.2,1328.7,4.00959]
[1610267247673,4.00959,1329.3,1329.2,4.00959]
[1610267249676,4.00959,1329.5,1329.2,4.00959]
[1610267250077,4.00959,1329.5,1328.7,30.0]
[1610267250777,4.00959,1329.5,1328.6,2.288]
[1610267250978,4.00959,1329.5,1328.3,30.0]
[1610267251678,4.00959,1329.0,1328.8,4.00959]
[1610267254187,2.1585,1329.7,1328.8,4.00959]
[1610267254588,59.8235,1330.2,1328.8,34.00959]
[1610267255588,59.8235,1330.2,1328.8,4.00959]
[1610267255788,59.8235,1330.2,1328.7,30.0]
[1610267256189,61.3417,1330.2,1328.7,30.0]
[1610267256588,61.3417,1330.2,1328.6,2.3072]
[1610267256990,59.8235,1330.2,1328.6,2.3072]
[1610267257689,59.8235,1330.2,1329.1,62.6688]
[1610267259790,4.00959,1329.2,1329.1,62.6688]
[1610267266895,4.00959,1329.2,1328.7,45.7028]
[1610267267095,48.0402,1329.1,1328.0,47.6332]
[1610267267897,4.00959,1328.1,1328.0,47.6332]
[1610267268097,6.51299,1328.1,1328.0,47.6332]
[1610267276303,6.51299,1328.1,1328.0,45.3191]
[1610267278804,6.51299,1328.1,1326.2,2.42]
[1610267279806,4.00959,1326.6,1326.5,4.00959]
[1610267281005,2.2569,1327.2,1326.5,4.00959]
[1610267281804,4.00959,1327.1,1327.0,4.00959]
[1610267282004,4.00959,1327.1,1326.2,5.825]
[1610267282206,4.00959,1327.1,1326.2,2.42]
[1610267283808,4.00959,1327.1,1325.1,40.216]
[1610267284008,4.00959,1326.7,1326.5,4.00959]
[1610267286310,2.2569,1327.2,1326.5,4.00959]
[1610267286511,55.2343,1327.5,1326.5,4.00959]
[1610267287913,4.00959,1326.7,1326.5,4.00959]
[1610267290216,1.8293,1327.1,1326.5,4.00959]
[1610267290515,55.2343,1327.5,1326.5,4.00959]
[1610267292019,4.00959,1327.2,1327.1,4.00959]
[1610267292621,55.2343,1327.5,1327.1,4.00959]
[1610267293721,52.9789,1327.5,1327.1,4.00959]
[1610267293921,52.9789,1327.5,1327.4,4.00959]
[1610267295123,4.00959,1327.7,1327.4,4.00959]
[1610267295923,4.00959,1327.5,1327.4,4.00959]
[1610267296626,4.00959,1327.5,1327.0,2.3796]
[1610267297927,4.00959,1327.1,1327.0,2.3796]
[1610267298324,2.5034,1328.1,1327.0,2.3796]
[1610267298524,1.8142,1329.3,1327.0,2.3796]
[1610267298724,5.9493,1329.9,1326.9,4.00959]
[1610267298924,5.9493,1329.9,1326.9,5.88159]
[1610267299924,4.00959,1327.3,1327.2,4.00959]
[1610267302228,2.508,1328.1,1327.2,4.00959]
[1610267303527,2.508,1328.1,1327.2,34.00959]
[1610267303929,4.00959,1327.9,1327.8,4.00959]
[1610267304330,2.508,1328.1,1327.8,4.00959]
[1610267304531,2.508,1328.1,1327.8,60.98349]
[1610267305130,2.508,1328.1,1327.8,56.9739]
[1610267305532,52.9302,1329.3,1327.8,56.9739]
[1610267305932,4.00959,1327.9,1327.8,56.9739]
[1610267308432,5.50859,1327.9,1327.8,56.9739]
[1610267308633,13.68779,1327.9,1327.1,62.4218]
[1610267309234,12.18879,1327.9,1327.1,62.4218]
[1610267309935,4.00959,1327.2,1327.1,62.4218]
[1610267310235,5.51549,1327.2,1327.1,62.4218]
[1610267310636,4.00959,1327.2,1327.1,62.4218]
[1610267311739,5.52079,1327.2,1327.1,62.4218]
[1610267312140,4.00959,1327.2,1327.1,62.4218]
[1610267313041,5.53229,1327.2,1327.1,62.4218]
[1610267313542,4.00959,1327.2,1327.1,62.4218]
[1610267315743,5.52169,1327.2,1327.1,62.4218]
[1610267315947,5.52169,1327.2,1327.1,66.43139]
[1610267316348,1.5121,1327.2,1327.1,66.43139]
[1610267316947,2.3692,1327.6,1327.1,66.43139]
[1610267317947,2.3692,1327.6,1327.5,4.00959]
[1610267318848,1.5219,1327.8,1327.5,4.00959]
[1610267319048,8.1792,1327.9,1327.5,4.00959]
[1610267320047,12.18879,1327.9,1327.8,4.00959]
[1610267322653,12.18879,1327.9,1327.1,62.4218]
[1610267323254,4.00959,1327.9,1327.8,7.4774]
[1610267323455,4.00959,1327.9,1326.5,31.754]
[1610267323855,4.00959,1327.9,1326.6,30.0]
[1610267324055,4.00959,1327.2,1327.1,4.00959]
[1610267324753,4.00959,1327.2,1326.6,30.0]
[1610267324954,4.00959,1327.2,1326.5,1.754]
[1610267325154,4.00959,1327.2,1326.2,30.0]
[1610267325954,4.00959,1327.2,1327.0,4.00959]
[1610267326856,1.9133,1327.8,1327.0,4.00959]
[1610267327960,1.9133,1327.8,1327.2,4.00959]
[1610267329159,1.9747,1328.1,1327.2,4.00959]
[1610267329361,11.4048,1329.5,1327.2,4.00959]
[1610267330061,4.00959,1327.3,1327.2,4.00959]